[Event "GER-ch Rapid Women 2017"]
[Site "Erfurt"]
[Date "2017.07.30"]
[Round "7"]
[White "Hess, Olena"]
[Black "Daemering, Katrin"]
[Result "1/2-1/2"]
[ECO "E91"]
[WhiteElo "2094"]
[BlackElo "2033"]
[Annotator "NA"]
[PlyCount "35"]
[EventDate "2017.??.??"]
[EventType "swiss"]
[EventCountry "GER"]
[SourceTitle "playchess.com"]
[Source "ChessBase"]
[SourceQuality "1"]
[TimeControl "1200"]

1. Nf3 {[%emt 0:00:01]} Nf6 {[%emt 0:00:02]} 2. c4 {[%emt 0:00:06]} d6 {[%emt 0:00:03]} 3. d4 {[%emt 0:00:04]} g6 {[%emt 0:00:03]} 4. Nc3 {[%emt 0:00:05]} Bg7 {[%emt 0:00:02]} 5. e4 {[%emt 0:00:01]} O-O {[%emt 0:00:04]} 6. Be2 {[%emt 0:00:12]} Nc6 {[%emt 0:01:02]} 7. O-O {[%emt 0:00:21]} e5 {[%emt 0:00:24]} 8. d5 {[%emt 0:00:01]} Ne7 {[%emt 0:00:02]} 9. Qc2 {[%emt 0:00:10]} h6 {[%emt 0:00:32]} 10. Rd1 {[%emt 0:00:38]} Ne8 {[%emt 0:00:27]} 11. g3 {[%emt 0:03:05]} f5 {[%emt 0:01:05]} 12. Nh4 {[%emt 0:00:02]} f4 {[%emt 0:01:10]} 13. b4 {[%emt 0:01:26]} g5 {[%emt 0:00:18]} 14. Nf3 {[%emt 0:01:40]} Ng6 {[%emt 0:02:02]} 15. Ne1 {[%emt 0:02:55]} Qf6 {[%emt 0:01:12]} 16. Nd3 {[%emt 0:01:12]} Bh3 {[%emt 0:02:06]} 17. c5 {[%emt 0:01:44]} a6 {[%emt 0:01:27]} 18. a4 {[%emt 0:00:20]} 1/2-1/2

[Event "GER-ch Rapid Women 2017"]
[Site "Erfurt"]
[Date "2017.07.30"]
[Round "7"]
[White "Zschischang, Marine"]
[Black "Fuchs, Judith"]
[Result "0-1"]
[ECO "B20"]
[WhiteElo "2057"]
[BlackElo "2285"]
[Annotator "NA"]
[PlyCount "104"]
[EventDate "2017.??.??"]
[EventType "swiss"]
[EventCountry "GER"]
[SourceTitle "playchess.com"]
[Source "ChessBase"]
[SourceQuality "1"]
[TimeControl "1200"]

1. e4 {[%emt 0:00:01]} c5 2. c4 Nc6 {[%emt 0:00:08]} 3. Nc3 {[%emt 0:00:02]} g6 {[%emt 0:00:03]} 4. g3 {[%emt 0:00:02]} Bg7 {[%emt 0:00:02]} 5. Bg2 {[%emt 0:00:01]} d6 {[%emt 0:00:02]} 6. h3 {[%emt 0:00:03]} Nf6 {[%emt 0:00:02]} 7. Nge2 {[%emt 0:00:02]} O-O {[%emt 0:00:10]} 8. O-O {[%emt 0:00:17]} Ne8 {[%emt 0:00:03]} 9. f4 {[%emt 0:00:20] A36: Symmetrical English vs ...g6: 4 Bg2 Bg7} (9. a3 Nc7 10. Rb1 a5 11. d3 Rb8 12. Be3 b5 13. cxb5 Nxb5 14. Nxb5 Rxb5 15. d4 cxd4 16. Nxd4 Nxd4 17. Bxd4 Bxd4 {½-½ (17) Hamdouchi,H (2627)-Libiszewski,F (2505) Saint Affrique 2012}) 9... Nc7 {[%emt 0:00:05]} 10. d3 {[%emt 0:01:01]} Ne6 {[%emt 0:00:06]} (10... a6 11. a4 Rb8 12. Rb1 b5 13. f5 Nd4 14. g4 Bd7 15. axb5 axb5 16. Nd5 bxc4 17. dxc4 Nxd5 18. exd5 gxf5 {0-1 (37) Zschischang,M (2086)-Fuchs,J (2289) Germany 2014}) 11. Kh2 {[%emt 0:00:03]} Ned4 {[%emt 0:00:04]} 12. Nxd4 {[%emt 0:00:08]} Nxd4 {[%emt 0:00:02]} 13. Ne2 {[%emt 0:00:02]} Rb8 {[%emt 0:00:06]} 14. Rb1 $146 {[%emt 0:00:02]} ({Find the theoretical novelty and annotate with similar games:} 14. Be3 Nxe2 15. Qxe2 b5 16. cxb5 Rxb5 {0-1 (33) Wang,A-Loftsson,J Oakland 1960}) 14... a6 {[%emt 0:00:08]} 15. Nxd4 {[%emt 0:00:16]} Bxd4 {[%emt 0:00:02]} 16. b3 {[%emt 0:00:01]} Qa5 {[%emt 0:01:26]} 17. a4 {[%emt 0:00:43]} b5 {[%emt 0:00:10]} 18. Bd2 {[%emt 0:01:11]} Qc7 {[%emt 0:00:27]} 19. axb5 {[%emt 0:01:21]} axb5 {[%emt 0:00:02]} 20. Qc1 {[%emt 0:00:08]} b4 {[%emt 0:00:57]} 21. Be3 {[%emt 0:00:41]} Bg7 {[%emt 0:00:02]} 22. Qd1 {[%emt 0:02:00]} Ra8 {[%emt 0:00:24]} 23. d4 {[%emt 0:00:22]} Bb7 {[%emt 0:00:14]} 24. dxc5 {[%emt 0:02:17]} dxc5 {[%emt 0:00:06]} 25. e5 {[%emt 0:00:04]} Ra2 {[%emt 0:01:01]} 26. Rf2 {[%emt 0:00:04]} Rxf2 {[%emt 0:01:18]} 27. Bxf2 {[%emt 0:00:02]} Bxg2 {[%emt 0:00:05]} 28. Kxg2 {[%emt 0:00:05]} Rd8 {[%emt 0:00:07]} 29. Qf3 {[%emt 0:00:25]} g5 {[%emt 0:00:11]} 30. Rd1 {[%emt 0:01:09]} Rxd1 $11 {[%emt 0:01:23]} 31. Qxd1 {[%emt 0:00:01]} gxf4 {[%emt 0:00:01]} 32. gxf4 {[%emt 0:00:04]} Bh6 {[%emt 0:00:10]} 33. Be3 {[%emt 0:02:03]} e6 {[%emt 0:00:43]} 34. Qg1 {[%emt 0:01:29]} Kh8 {[%emt 0:00:20]} 35. Kf3 {[%emt 0:01:07]} Qc6+ {[%emt 0:00:09]} 36. Ke2 {[%emt 0:00:10]} Qe4 {[%emt 0:00:13]} 37. Qd1 {[%emt 0:00:23]} Qg2+ 38. Bf2 Qe4+ {[%emt 0:02:36]} 39. Be3 {[%emt 0:00:09]} Kg7 {[%emt 0:00:34]} 40. Qd8 {[%emt 0:00:28]} Qg2+ {[%emt 0:00:49]} 41. Bf2 {[%emt 0:00:01]} Qg6 {[%emt 0:00:21]} 42. Kf3 {[%emt 0:00:07]} Qf5 {[%emt 0:00:24]} 43. Bg3 {[%emt 0:00:27]} Kg6 {[%emt 0:00:31]} 44. h4 {[%emt 0:00:01]} Kh5 {[%emt 0:00:40]} 45. Bh2 {[%emt 0:00:06]} Qg4+ {[%emt 0:00:09]} 46. Kf2 {[%emt 0:00:04]} Bxf4 {[%emt 0:00:18]} 47. Qf6 {[%emt 0:00:08]} Bxh2 {[%emt 0:00:23]} 48. Qxf7+ {[%emt 0:00:01]} Qg6 {[%emt 0:00:25]} 49. Qf3+ {[%emt 0:00:04]} Kh6 {[%emt 0:00:11]} 50. Qe3+ {[%emt 0:00:06]} Kg7 {[%emt 0:00:04]} 51. Qf3 {[%emt 0:00:08]} Qf7 {[%emt 0:00:09]} 52. Qxf7+ Kxf7 0-1

[Event "GER-ch Rapid Women 2017"]
[Site "Erfurt"]
[Date "2017.07.30"]
[Round "7"]
[White "Ries, Jutta"]
[Black "Ganser, Ganokorn"]
[Result "1-0"]
[ECO "A02"]
[WhiteElo "2051"]
[BlackElo "1698"]
[Annotator "NA"]
[PlyCount "65"]
[EventDate "2017.??.??"]
[EventType "swiss"]
[EventCountry "GER"]
[SourceTitle "playchess.com"]
[Source "ChessBase"]
[SourceQuality "1"]
[TimeControl "1200"]

1. f4 {[%emt 0:00:02]} Nf6 {[%emt 0:00:10]} 2. Nf3 {[%emt 0:00:02]} g6 {[%emt 0:00:39]} 3. b3 {[%emt 0:00:04]} Bg7 {[%emt 0:00:02]} 4. Bb2 {[%emt 0:00:01]} O-O {[%emt 0:00:08]} 5. e3 {[%emt 0:00:04]} c5 {[%emt 0:00:14]} 6. Be2 {[%emt 0:00:27]} Nc6 {[%emt 0:00:02]} 7. O-O {[%emt 0:00:03]} b6 {[%emt 0:00:12]} 8. Nc3 {[%emt 0:01:06]} Bb7 {[%emt 0:00:02]} 9. Qe1 {[%emt 0:00:39]} d5 {[%emt 0:02:22]} 10. Bb5 {[%emt 0:01:56]} Nb4 {[%emt 0:00:07]} 11. Qd1 {[%emt 0:00:34]} a6 {[%emt 0:03:21]} 12. a3 {[%emt 0:00:01]} Nxc2 {[%emt 0:02:10]} 13. Qxc2 {[%emt 0:00:02]} axb5 {[%emt 0:00:01]} 14. Nxb5 {[%emt 0:00:03]} Qd7 {[%emt 0:00:47]} 15. a4 {[%emt 0:00:08]} Rfc8 {[%emt 0:00:22]} 16. Ne5 {[%emt 0:00:08]} Qe8 {[%emt 0:00:17]} 17. d3 {[%emt 0:00:25]} Nd7 {[%emt 0:01:07]} 18. Nxd7 {[%emt 0:00:36]} Qxd7 {[%emt 0:00:12]} 19. Bxg7 {[%emt 0:00:31]} Kxg7 {[%emt 0:00:01]} 20. Qb2+ {[%emt 0:00:42]} Kg8 {[%emt 0:00:02]} 21. f5 {[%emt 0:00:38]} Bc6 {[%emt 0:00:04]} 22. Na3 {[%emt 0:01:10]} b5 {[%emt 0:01:04]} 23. fxg6 {[%emt 0:00:40]} hxg6 {[%emt 0:00:14]} 24. axb5 {[%emt 0:01:43]} Bxb5 {[%emt 0:00:01]} 25. Nxb5 {[%emt 0:00:03]} Qxb5 {[%emt 0:00:03]} 26. Qc3 {[%emt 0:00:31]} Rxa1 {[%emt 0:00:13]} 27. Rxa1 {[%emt 0:00:01]} Rb8 {[%emt 0:00:12]} 28. Ra5 {[%emt 0:01:53]} Qxb3 {[%emt 0:00:21]} 29. Rxc5 {[%emt 0:00:02]} Qb1+ {[%emt 0:00:04]} 30. Kf2 {[%emt 0:00:01]} Rb2+ {[%emt 0:00:01]} 31. Kg3 {[%emt 0:00:01]} Qa2 {[%emt 0:00:24]} 32. Rc8+ {[%emt 0:00:04]} Kh7 {[%emt 0:00:01]} 33. Rh8# {[%emt 0:00:02]} 1-0

[Event "GER-ch Rapid Women 2017"]
[Site "Erfurt"]
[Date "2017.07.30"]
[Round "7"]
[White "Muetsch, Annmarie"]
[Black "Osmanodja, Filiz"]
[Result "1-0"]
[ECO "B56"]
[WhiteElo "2049"]
[BlackElo "2273"]
[Annotator "NA"]
[PlyCount "79"]
[EventDate "2017.??.??"]
[EventType "swiss"]
[EventCountry "GER"]
[SourceTitle "playchess.com"]
[Source "ChessBase"]
[SourceQuality "1"]
[TimeControl "1200"]

1. e4 {[%emt 0:00:01]} c5 {[%emt 0:00:29]} 2. Nf3 {[%emt 0:00:02]} d6 {[%emt 0:00:02]} 3. d4 {[%emt 0:00:02]} Nf6 {[%emt 0:00:04]} 4. Nc3 {[%emt 0:00:06]} cxd4 {[%emt 0:00:01]} 5. Nxd4 {[%emt 0:00:01]} Nc6 {[%emt 0:00:01]} 6. g3 {[%emt 0:00:07]} Bg4 {[%emt 0:02:21]} 7. Be2 {[%emt 0:01:09]} Bh3 {[%emt 0:00:01]} 8. Bf1 {[%emt 0:01:22]} Bxf1 {[%emt 0:00:50]} 9. Kxf1 {[%emt 0:00:04]} Qb6 {[%emt 0:02:30]} 10. Nb3 {[%emt 0:00:45]} Qb4 {[%emt 0:00:45]} 11. Qe2 {[%emt 0:00:38]} Ne5 {[%emt 0:03:10]} 12. f4 {[%emt 0:02:10]} Nc6 $18 {[%emt 0:04:31]} 13. e5 {[%emt 0:01:04]} dxe5 {[%emt 0:00:13]} 14. fxe5 {[%emt 0:00:01]} Nd7 {[%emt 0:00:03]} 15. Nd5 {[%emt 0:00:45]} Qa4 {[%emt 0:00:01]} 16. Nc7+ Kd8 17. Nxa8 {[%emt 0:00:11]} e6 {[%emt 0:00:34]} 18. Bf4 {[%emt 0:06:53]} Kc8 {[%emt 0:00:00]} 19. Rd1 {[%emt 0:00:12]} Be7 {[%emt 0:00:08]} 20. Kg2 {[%emt 0:00:53]} Rd8 {[%emt 0:00:20]} 21. Rd3 {[%emt 0:00:14]} Kb8 {[%emt 0:00:47]} 22. Rhd1 {[%emt 0:00:02]} Nb4 {[%emt 0:00:00]} 23. Rd4 {[%emt 0:00:21]} Qc6+ {[%emt 0:00:01]} 24. Qf3 {[%emt 0:00:06]} Nd5 {[%emt 0:00:08]} 25. c4 {[%emt 0:00:09]} Nxf4+ {[%emt 0:00:55]} 26. gxf4 {[%emt 0:00:11]} Qc8 {[%emt 0:00:01]} 27. Qd3 {[%emt 0:00:11]} Qc6+ {[%emt 0:00:12]} 28. Kh3 {[%emt 0:00:05]} Kxa8 {[%emt 0:00:13]} 29. Na5 {[%emt 0:00:24]} Qb6 {[%emt 0:00:26]} 30. c5 {[%emt 0:00:44]} Qxc5 {[%emt 0:00:20]} 31. Qb3 {[%emt 0:00:07]} Qxa5 {[%emt 0:00:06]} 32. Rxd7 {[%emt 0:00:04]} Rb8 {[%emt 0:00:22]} 33. Rxe7 {[%emt 0:00:01]} Qc5 {[%emt 0:00:01]} 34. Red7 {[%emt 0:00:04]} Qf2 {[%emt 0:00:01]} 35. Qg3 {[%emt 0:00:05]} Qe2 {[%emt 0:00:03]} 36. R1d2 {[%emt 0:00:04]} Qh5+ {[%emt 0:00:01]} 37. Kg2 {[%emt 0:00:01]} Qf5 {[%emt 0:00:06]} 38. Qf3 {[%emt 0:00:01]} h6 {[%emt 0:00:01]} 39. Rxb7 {[%emt 0:00:02]} Qg6+ {[%emt 0:00:04]} 40. Kf2 {[%emt 0:00:01]} 1-0

[Event "GER-ch Rapid Women 2017"]
[Site "Erfurt"]
[Date "2017.07.30"]
[Round "7"]
[White "Zahn, Alina"]
[Black "Mader, Manuela"]
[Result "0-1"]
[ECO "B18"]
[WhiteElo "2025"]
[BlackElo "2203"]
[Annotator "NA"]
[PlyCount "114"]
[EventDate "2017.??.??"]
[EventType "swiss"]
[EventCountry "GER"]
[SourceTitle "playchess.com"]
[Source "ChessBase"]
[SourceQuality "1"]
[TimeControl "1200"]

1. e4 {[%emt 0:00:02]} c6 {[%emt 0:00:00]} 2. d4 {[%emt 0:00:07]} d5 {[%emt 0:00:01]} 3. Nc3 {[%emt 0:00:04]} dxe4 {[%emt 0:00:01]} 4. Nxe4 {[%emt 0:00:01]} Bf5 {[%emt 0:00:01]} 5. Ng3 {[%emt 0:00:01]} Bg6 {[%emt 0:00:01]} 6. f4 {[%emt 0:00:03]} e6 {[%emt 0:00:02]} 7. Nf3 {[%emt 0:00:05]} Nd7 {[%emt 0:00:09]} 8. Bc4 {[%emt 0:00:02]} Ngf6 {[%emt 0:00:16]} 9. O-O {[%emt 0:00:04]} Be7 {[%emt 0:00:43]} 10. f5 {[%emt 0:00:02]} exf5 {[%emt 0:00:08]} 11. Nh4 {[%emt 0:00:07]} Nb6 {[%emt 0:00:14]} 12. Bb3 {[%emt 0:00:16]} O-O {[%emt 0:01:40]} 13. Ngxf5 {[%emt 0:01:26]} Nfd5 {[%emt 0:01:29]} 14. Nxe7+ {[%emt 0:01:03]} Qxe7 {[%emt 0:00:02]} 15. Nxg6 {[%emt 0:00:57]} hxg6 {[%emt 0:00:01]} 16. Qf3 {[%emt 0:00:10]} Rad8 {[%emt 0:03:08]} 17. Bd2 {[%emt 0:01:19]} Nc7 {[%emt 0:00:29]} 18. Rae1 {[%emt 0:00:33]} Qd7 {[%emt 0:00:02]} 19. c3 {[%emt 0:00:15]} a5 {[%emt 0:01:41]} 20. Bg5 {[%emt 0:00:08]} Rde8 {[%emt 0:00:26]} 21. Rxe8 {[%emt 0:01:52]} Qxe8 {[%emt 0:00:01]} 22. Qg3 {[%emt 0:00:05]} Ncd5 {[%emt 0:00:21]} 23. c4 {[%emt 0:00:45]} Nb4 {[%emt 0:02:29]} 24. a3 {[%emt 0:00:24]} Na6 {[%emt 0:00:01]} 25. Bf4 {[%emt 0:02:07]} a4 {[%emt 0:00:32]} 26. Ba2 {[%emt 0:00:05]} Qe4 {[%emt 0:00:56]} 27. Qf2 {[%emt 0:00:40]} Nc8 {[%emt 0:01:33]} 28. Re1 {[%emt 0:00:31]} Qf5 {[%emt 0:00:02]} 29. Re5 {[%emt 0:00:13]} Qd7 {[%emt 0:00:02]} 30. Qe2 {[%emt 0:01:28]} Qxd4+ {[%emt 0:00:02]} 31. Qf2 {[%emt 0:00:39]} Qd1+ {[%emt 0:00:39]} 32. Re1 {[%emt 0:00:08]} Qd7 {[%emt 0:00:02]} 33. h3 {[%emt 0:00:38]} Nc7 {[%emt 0:00:03]} 34. Qg3 {[%emt 0:00:07]} Ne6 {[%emt 0:00:03]} 35. Be5 {[%emt 0:00:55]} Ne7 {[%emt 0:00:07]} 36. Qf3 {[%emt 0:00:10]} Rd8 {[%emt 0:00:30]} 37. c5 {[%emt 0:00:36]} Nd5 {[%emt 0:00:33]} 38. Bd6 {[%emt 0:00:18]} b6 {[%emt 0:00:17]} 39. Qf2 {[%emt 0:00:32]} bxc5 {[%emt 0:00:02]} 40. Bxc5 {[%emt 0:00:01]} Rb8 {[%emt 0:00:08]} 41. Kh1 {[%emt 0:00:16]} Nxc5 {[%emt 0:00:01]} 42. Qxc5 {[%emt 0:00:00]} Rxb2 {[%emt 0:00:02]} 43. Bxd5 {[%emt 0:00:04]} cxd5 {[%emt 0:00:01]} 44. Rd1 {[%emt 0:00:02]} Rb5 {[%emt 0:00:06]} 45. Qc2 {[%emt 0:00:03]} Rb6 {[%emt 0:00:01]} 46. Qc5 {[%emt 0:00:02]} Rd6 {[%emt 0:00:01]} 47. Qa5 {[%emt 0:00:02]} d4 {[%emt 0:00:01]} 48. Qa8+ {[%emt 0:00:02]} Qd8 {[%emt 0:00:01]} 49. Qxa4 {[%emt 0:00:02]} d3 {[%emt 0:00:01]} 50. Qb3 {[%emt 0:00:01]} Rd4 {[%emt 0:00:01]} 51. Qc3 {[%emt 0:00:02]} Qd7 {[%emt 0:00:02]} 52. Qb3 {[%emt 0:00:01]} d2 {[%emt 0:00:01]} 53. a4 {[%emt 0:00:01]} Re4 {[%emt 0:00:01]} 54. Qc2 {[%emt 0:00:02]} Re1+ {[%emt 0:00:03]} 55. Kh2 {[%emt 0:00:01]} Re2 {[%emt 0:00:03]} 56. Kg1 {[%emt 0:00:01]} Qd5 {[%emt 0:00:01]} 57. a5 {[%emt 0:00:02]} Qxg2# {[%emt 0:00:01]} 0-1

[Event "GER-ch Rapid Women 2017"]
[Site "Erfurt"]
[Date "2017.07.30"]
[Round "7"]
[White "Zimmer, Elke"]
[Black "Perez Celis, Alba"]
[Result "1-0"]
[ECO "B01"]
[WhiteElo "1950"]
[BlackElo "1790"]
[Annotator "NA"]
[PlyCount "97"]
[EventDate "2017.??.??"]
[EventType "swiss"]
[EventCountry "GER"]
[SourceTitle "playchess.com"]
[Source "ChessBase"]
[SourceQuality "1"]
[TimeControl "1200"]

1. e4 {[%emt 0:00:01]} d5 {[%emt 0:00:02]} 2. exd5 {[%emt 0:00:02]} Qxd5 {[%emt 0:00:02]} 3. Nc3 {[%emt 0:00:02]} Qa5 {[%emt 0:00:02]} 4. d4 {[%emt 0:00:01]} Bf5 {[%emt 0:00:03]} 5. Nf3 {[%emt 0:00:01]} Nf6 {[%emt 0:00:06]} 6. Bd2 c6 {[%emt 0:00:03]} 7. Bc4 {[%emt 0:00:53]} e6 {[%emt 0:00:17]} 8. O-O {[%emt 0:00:12]} Bd6 {[%emt 0:00:12]} 9. Ne4 {[%emt 0:00:26]} Qd8 {[%emt 0:00:15]} 10. Nxd6+ {[%emt 0:00:02]} Qxd6 {[%emt 0:00:03]} 11. c3 {[%emt 0:00:08]} O-O {[%emt 0:00:22]} 12. Qc1 {[%emt 0:00:06]} Nd5 {[%emt 0:00:40]} 13. Re1 {[%emt 0:01:17]} Nd7 {[%emt 0:00:10]} 14. Bb3 {[%emt 0:00:05]} N7f6 {[%emt 0:00:28]} 15. c4 {[%emt 0:00:14]} Ne7 {[%emt 0:01:13]} 16. Bf4 {[%emt 0:00:47]} Qd8 {[%emt 0:00:57]} 17. Bc2 {[%emt 0:00:19]} Bg4 {[%emt 0:00:58]} 18. Ne5 {[%emt 0:00:27]} Ng6 {[%emt 0:01:59]} 19. Bg5 {[%emt 0:00:33]} h6 {[%emt 0:01:04]} 20. Bxf6 {[%emt 0:00:12]} Qxf6 {[%emt 0:00:43]} 21. Nxg4 {[%emt 0:00:05]} Qxd4 {[%emt 0:00:03]} 22. Ne3 {[%emt 0:00:11]} Nf4 {[%emt 0:00:37]} 23. Kf1 {[%emt 0:01:22]} f5 {[%emt 0:01:34]} 24. Rd1 {[%emt 0:00:07]} Qe5 {[%emt 0:01:19]} 25. Rb1 {[%emt 0:01:48]} Nh5 {[%emt 0:00:32]} 26. g3 {[%emt 0:01:19]} f4 {[%emt 0:00:19]} 27. Ng4 {[%emt 0:00:01]} Qg5 {[%emt 0:01:48]} 28. h3 {[%emt 0:00:01]} Qc5 {[%emt 0:02:59]} 29. b4 {[%emt 0:00:01]} Qb6 {[%emt 0:00:05]} 30. c5 {[%emt 0:00:04]} Qc7 {[%emt 0:00:01]} 31. Rd6 {[%emt 0:00:41]} fxg3 {[%emt 0:00:02]} 32. Qe3 {[%emt 0:00:04]} gxf2 {[%emt 0:00:06]} 33. Qxe6+ {[%emt 0:00:18]} Kh8 {[%emt 0:00:01]} 34. Nxf2 {[%emt 0:00:15]} Ng3+ {[%emt 0:00:02]} 35. Kg2 {[%emt 0:00:04]} Nf5 {[%emt 0:00:01]} 36. Bxf5 {[%emt 0:00:05]} Rf6 {[%emt 0:00:03]} 37. Qd7 {[%emt 0:00:37]} Qxd7 {[%emt 0:00:08]} 38. Bxd7 {[%emt 0:00:02]} Rf7 {[%emt 0:00:05]} 39. Rbd1 {[%emt 0:00:17]} Raf8 {[%emt 0:00:01]} 40. Ng4 {[%emt 0:00:02]} h5 {[%emt 0:00:04]} 41. Be6 {[%emt 0:00:09]} Rf4 {[%emt 0:00:06]} 42. Rd8 {[%emt 0:00:04]} hxg4 {[%emt 0:00:03]} 43. Rxf8+ {[%emt 0:00:03]} Rxf8 {[%emt 0:00:03]} 44. hxg4 {[%emt 0:00:06]} Rf4 {[%emt 0:00:02]} 45. a3 {[%emt 0:00:02]} Re4 {[%emt 0:00:02]} 46. Bf5 {[%emt 0:00:02]} Re8 {[%emt 0:00:04]} 47. Kf3 {[%emt 0:00:02]} Kg8 {[%emt 0:00:02]} 48. Rd7 {[%emt 0:00:01]} Kf8 {[%emt 0:00:03]} 49. Rxb7 {[%emt 0:00:02]} 1-0

[Event "GER-ch Rapid Women 2017"]
[Site "Erfurt"]
[Date "2017.07.30"]
[Round "7"]
[White "Kinzel, Tiffany"]
[Black "Yueksel, Anja"]
[Result "1-0"]
[ECO "A45"]
[WhiteElo "1755"]
[BlackElo "1472"]
[Annotator "NA"]
[PlyCount "53"]
[EventDate "2017.??.??"]
[EventType "swiss"]
[EventCountry "GER"]
[SourceTitle "playchess.com"]
[Source "ChessBase"]
[SourceQuality "1"]
[TimeControl "1200"]

1. d4 {[%emt 0:00:01]} Nf6 {[%emt 0:00:01]} 2. e3 {[%emt 0:00:02]} g6 {[%emt 0:00:01]} 3. Bd3 {[%emt 0:00:01]} Bg7 {[%emt 0:00:02]} 4. f4 {[%emt 0:00:09]} d5 {[%emt 0:00:05]} 5. Nd2 {[%emt 0:00:21]} O-O {[%emt 0:00:09]} 6. Ngf3 {[%emt 0:00:02]} Nbd7 {[%emt 0:00:13]} 7. O-O {[%emt 0:00:09]} c5 {[%emt 0:00:09]} 8. c3 {[%emt 0:00:11]} c4 {[%emt 0:00:28]} 9. Bc2 {[%emt 0:00:03]} b5 {[%emt 0:00:04]} 10. Ne5 {[%emt 0:00:06]} Nxe5 {[%emt 0:00:11]} 11. fxe5 {[%emt 0:00:04]} Ng4 {[%emt 0:00:30]} 12. Qe1 {[%emt 0:00:40]} a5 {[%emt 0:00:58]} 13. h3 {[%emt 0:00:10]} Nh6 {[%emt 0:00:03]} 14. e4 {[%emt 0:00:07]} dxe4 {[%emt 0:00:40]} 15. Nxe4 {[%emt 0:01:04]} f5 {[%emt 0:00:41]} 16. exf6 {[%emt 0:02:12]} exf6 {[%emt 0:00:04]} 17. Bf4 {[%emt 0:03:15]} Re8 {[%emt 0:00:24]} 18. Bxh6 {[%emt 0:00:55]} f5 {[%emt 0:01:55]} 19. Bg5 {[%emt 0:05:38]} Qd5 {[%emt 0:00:50]} 20. Nf6+ {[%emt 0:00:16]} Bxf6 {[%emt 0:00:21]} 21. Qxe8+ {[%emt 0:00:03]} Kg7 {[%emt 0:00:03]} 22. Bxf6+ {[%emt 0:01:08]} Kxf6 {[%emt 0:00:05]} 23. Qf8+ {[%emt 0:00:10]} Kg5 {[%emt 0:00:47]} 24. Rae1 {[%emt 0:00:29]} Bb7 {[%emt 0:00:06]} 25. h4+ {[%emt 0:00:12]} Kxh4 {[%emt 0:00:08]} 26. Qh6+ {[%emt 0:00:03]} Kg3 {[%emt 0:02:07]} 27. Qg5# 1-0

[Event "GER-ch Rapid Women 2017"]
[Site "Erfurt"]
[Date "2017.07.30"]
[Round "7"]
[White "Bachmann, Sylvia"]
[Black "Birkholz, Olga"]
[Result "0-1"]
[ECO "B23"]
[WhiteElo "1677"]
[BlackElo "2076"]
[Annotator "NA"]
[PlyCount "66"]
[EventDate "2017.??.??"]
[EventType "swiss"]
[EventCountry "GER"]
[SourceTitle "playchess.com"]
[Source "ChessBase"]
[SourceQuality "1"]
[TimeControl "1200"]

1. e4 {[%emt 0:00:02]} c5 {[%emt 0:00:03]} 2. Nc3 {[%emt 0:00:02]} a6 {[%emt 0:00:01]} 3. g3 {[%emt 0:00:17]} g6 {[%emt 0:00:02]} 4. Bg2 {[%emt 0:00:02]} Bg7 {[%emt 0:00:01]} 5. f4 {[%emt 0:00:14]} e6 {[%emt 0:00:01]} 6. Nf3 {[%emt 0:00:02]} Ne7 {[%emt 0:00:01]} 7. O-O {[%emt 0:00:11]} d6 {[%emt 0:00:01]} 8. d3 {[%emt 0:00:07]} O-O {[%emt 0:00:02]} 9. Qe2 {[%emt 0:00:36]} Nbc6 {[%emt 0:00:03]} 10. Be3 {[%emt 0:00:23]} Nd4 {[%emt 0:00:13]} 11. Qd2 {[%emt 0:00:17]} Rb8 {[%emt 0:00:14]} 12. Rab1 {[%emt 0:00:19]} b5 {[%emt 0:00:11]} 13. h3 {[%emt 0:00:26]} Bb7 {[%emt 0:00:41]} 14. Kh2 {[%emt 0:00:04]} f5 {[%emt 0:00:44]} 15. exf5 {[%emt 0:01:27]} Nexf5 {[%emt 0:00:16]} 16. Bf2 {[%emt 0:00:57]} Nxf3+ {[%emt 0:00:06]} 17. Bxf3 {[%emt 0:00:09]} Bxf3 {[%emt 0:00:02]} 18. Bg1 {[%emt 0:00:51]} Bc6 {[%emt 0:00:11]} 19. Rfe1 {[%emt 0:00:23]} Qd7 {[%emt 0:00:18]} 20. Ne4 {[%emt 0:00:34]} Nd4 {[%emt 0:00:10]} 21. Re3 {[%emt 0:00:27]} e5 {[%emt 0:00:08]} 22. c3 {[%emt 0:00:19]} exf4 {[%emt 0:00:14]} 23. gxf4 {[%emt 0:00:17]} Nf5 {[%emt 0:00:05]} 24. Re2 {[%emt 0:00:23]} Nh4 {[%emt 0:00:12]} 25. Rf1 {[%emt 0:00:52]} Rbe8 {[%emt 0:00:22]} 26. Qe1 {[%emt 0:00:30]} Nf5 {[%emt 0:00:03]} 27. Qf2 {[%emt 0:01:18]} Re7 {[%emt 0:00:17]} 28. Rfe1 {[%emt 0:00:09]} Rfe8 {[%emt 0:00:05]} 29. Ng5 {[%emt 0:00:36]} h6 {[%emt 0:01:06]} 30. Ne4 {[%emt 0:00:11]} Qb7 {[%emt 0:00:22]} 31. Qg2 {[%emt 0:00:28]} Kh7 {[%emt 0:00:03]} 32. Qg4 {[%emt 0:00:15]} Bxe4 {[%emt 0:00:08]} 33. dxe4 {[%emt 0:00:09]} Rxe4 {[%emt 0:00:02]} 0-1

[Event "GER-ch Rapid Women 2017"]
[Site "Erfurt"]
[Date "2017.07.30"]
[Round "8"]
[White "Fuchs, Judith"]
[Black "Michna, Marta"]
[Result "1/2-1/2"]
[ECO "C11"]
[WhiteElo "2285"]
[BlackElo "2377"]
[Annotator "NA"]
[PlyCount "38"]
[EventDate "2017.??.??"]
[EventType "swiss"]
[EventCountry "GER"]
[SourceTitle "playchess.com"]
[Source "ChessBase"]
[SourceQuality "1"]
[TimeControl "1200"]

1. e4 {[%emt 0:00:02]} e6 {[%emt 0:00:03]} 2. d4 {[%emt 0:00:03]} d5 {[%emt 0:00:01]} 3. Nc3 {[%emt 0:00:02]} Nf6 {[%emt 0:00:08]} 4. e5 {[%emt 0:00:01]} Nfd7 {[%emt 0:00:01]} 5. f4 {[%emt 0:00:01]} c5 {[%emt 0:00:06]} 6. Nf3 {[%emt 0:00:02]} Be7 {[%emt 0:00:01]} 7. Be3 {[%emt 0:00:06]} b6 {[%emt 0:00:05]} 8. Ne2 {[%emt 0:00:06]} Nc6 {[%emt 0:00:32]} 9. c3 {[%emt 0:00:03]} O-O {[%emt 0:00:21]} 10. g3 {[%emt 0:00:42]} a5 {[%emt 0:00:33]} 11. Bh3 {[%emt 0:00:08]} g6 {[%emt 0:01:37]} 12. O-O {[%emt 0:00:23]} a4 {[%emt 0:00:25]} 13. g4 {[%emt 0:00:56]} f5 {[%emt 0:02:38]} 14. gxf5 {[%emt 0:02:19]} exf5 {[%emt 0:00:11]} 15. dxc5 {[%emt 0:01:07]} Nxc5 {[%emt 0:00:10]} 16. Bg2 {[%emt 0:00:28]} Ne4 {[%emt 0:00:28]} 17. Ned4 {[%emt 0:00:24]} Bc5 {[%emt 0:02:28]} 18. Re1 {[%emt 0:00:39]} Nxd4 {[%emt 0:00:15]} 19. Nxd4 Re8 1/2-1/2